Cogmind - Beta 15 @@@ ROGUE MODE // 2025.08.20 @ 13:43:31 Player: Mogwok Wargfriend Result: Destroyed by S-10 Pest with Light Assault Rifle Performance ------------- Evolutions (0) 0 Regions Visited (2) 400 Robots Destroyed (45) 225 Value Destroyed (916) 916 Prototype IDs (13) 260 Alien Tech Used (0) 0 Bonus (0) 0 TOTAL SCORE: 1801 Bonus ------- None Cogmind --------- Core Integrity 0/250 Matter 255/300 Energy 250/250 System Corruption 1% Temperature Cool (0) Movement Rolling (215) Ox9 Location -10/Subcaves Parts ------- > --- POWER (1) -------- Ion Engine > --- PROPULSION (2) --- Light Treads Wheel > --- UTILITY (2) ------ Huge Storage Unit Visual Processing Unit > --- WEAPON (2) ------- Light EM Pulse Cannon Improved Light Cannon > --- INVENTORY (25) --- Light Ion Engine Light Treads Light Treads Light Treads Wheel Compact Wheel Subdweller Monowheel Heat Sink Medium Matter Pod (100) Subdweller Optics Makeshift Targeting Computer Power Shielding Utility Shielding Utility Shielding Scrap Shield Light EM Pulse Cannon Subdweller Beam Cannon Subdweller Machine Gun Improved Light Cannon Improved Light Cannon Improved Light Cannon Grenade Launcher Mining Laser Shrapnel Trap Peak State ------------ > --- POWER ------------ Ion Engine > --- PROPULSION ------- Light Treads Wheel > --- UTILITY ---------- Huge Storage Unit Visual Processing Unit > --- WEAPON ----------- Light EM Pulse Cannon Improved Light Cannon > --- INVENTORY -------- Ion Engine Light Ion Engine Light Treads Light Treads Light Treads Light Treads Wheel Wheel Wheel Wheel Compact Wheel Heat Sink Medium Matter Pod Power Shielding Utility Shielding Utility Shielding Light EM Pulse Cannon Light EM Pulse Cannon Light EM Pulse Cannon Assault Rifle Improved Light Cannon Improved Light Cannon Improved Light Cannon Grenade Launcher Mining Laser [Rating: 13] Favorites ----------- Power Ion Engine Engine Ion Engine Propulsion Wheel Treads Light Treads Wheel Wheel Utility Visual Processing Unit Device Seismic Detector Storage Huge Storage Unit Processor Visual Processing Unit Weapon Light EM Pulse Cannon Energy Gun Small Laser Energy Cannon Light EM Pulse Cannon Ballistic Gun Assault Rifle Ballistic Cannon Improved Light Cannon Special Weapon Mining Laser Build | -11 -10 -10 ------- Run | Yrd Mat Sub Slots Evolved . | . . . Power . | . . . Propulsion . | . . . Utility . | . . . Weapon . | . . . Parts Attached 21 | 7 8 6 Power 2 | 1 . 1 Engine 2 | 1 . 1 Core . | . . . Reactor . | . . . Propulsion 4 | 2 . 2 Treads 2 | 1 . 1 Leg . | . . . Wheel 2 | 1 . 1 Hover . | . . . Flight . | . . . Utility 5 | 2 3 . Device 1 | 1 . . Storage 3 | 1 2 . Processor 1 | . 1 . Hackware . | . . . Protection . | . . . Artifact . | . . . Weapon 10 | 2 5 3 Energy Gun 2 | 2 . . Energy Cannon 3 | . 1 2 Ballistic Gun 1 | . 1 . Ballistic Cannon 2 | . 1 1 Launcher . | . . . Special Weapon 2 | . 2 . Impact Weapon . | . . . Slashing Weapon . | . . . Piercing Weapon . | . . . Special Melee Weapon . | . . . Unidentified Prototypes . | . . . Corrupted Parts 1 | . 1 . System Corruption 1 | . 1 . Parts Lost 5 | . . 5 Power 1 | . . 1 Propulsion 2 | . . 2 Utility . | . . . Weapon 2 | . . 2 Highest Loss Streak 1 | . . 1 To Critical Strikes . | . . . Average Backups 19 | 3 16 23 Power 1 | . 1 1 Propulsion 5 | 1 6 5 Utility 5 | . 3 7 Weapon 7 | 1 5 8 Tool/Special . | . . . Unused Backups 29 | . 4 25 Power 1 | . . 1 Propulsion 10 | . 2 8 Utility 9 | . . 9 Weapon 9 | . 2 7 Tool/Special . | . . . Average Slot Usage (%) 99 | . 99 100 Engine 13 | . 13 14 Treads 14 | . 14 14 Wheel 14 | . 14 14 Device 2 | . 4 . Storage 14 | . 14 14 Processor 11 | . 9 14 Energy Gun 2 | . 5 . Energy Cannon 12 | . 10 13 Ballistic Gun 1 | . 2 . Ballistic Cannon 11 | . 9 14 Peak Build Rating 13 | 7 13 13 Average Rating 11 | 6 10 12 On Entrance 6 | . 7 13 Naked Turns . | . . . Heaviest Build 93 | 14 93 93 Greatest Support 10 | 10 10 10 Greatest Overweight (x) 9 | 1 9 9 Average Overweight (x) 6 | . 4 8 Largest Inventory Capacity 25 | 8 25 25 Average Capacity 21 | 7 18 25 Most Carried 25 | 8 25 25 Average Carried 20 | 3 16 24 Final Capacity 25 | 8 25 25 Final Carried 25 | 8 25 25 Class Distribution -------------------- 100% | Mutant Dominant Class ---------------- Mutant | -10/Materials Mutant | -10/Subcaves Resources | -11 -10 -10 ----------- Run | Yrd Mat Sub Matter Collected 955 | 337 398 220 Remotely . | . . . Salvage Created 1548 | 178 1140 230 Parts 81 | 8 59 14 Haulers Intercepted 2 | . 2 . Recyclers Shooed 2 | . 2 . Parts Field Recycled . | . . . Retrieved Matter . | . . . Parts Self-Destructed 8 | . . 8 Prevented . | . . . Kills | -11 -10 -10 ------- Run | Yrd Mat Sub Combat Hostiles Destroyed 24 | . 16 8 Guns 6 | . 6 . Cannons 17 | . 9 8 Classes Destroyed 11 | 3 6 2 Worker 5 | 2 3 . Builder 1 | . 1 . Tunneler 3 | 3 . . Hauler 2 | . 2 . Recycler 6 | 1 5 . Operator 1 | . 1 . Watcher 3 | . 3 . Swarmer 5 | . 3 2 Grunt 13 | . 13 . Artisan 1 | . . 1 Subdweller 6 | . . 6 Best Kill Streak 5 | 3 5 2 Combat Bots Only 3 | . 3 2 Max Kills in Single Turn 2 | 1 2 1 Gunslinging 1 | . 1 . Exploded . | . . . Melee . | . . . Uniques/NPCs Destroyed . | . . . Combat | -11 -10 -10 -------- Run | Yrd Mat Sub Hostile Shots Fired 127 | . 69 58 Missed 43 | . 27 16 Hits 84 | . 42 42 Projectile 84 | . 42 42 Damage Taken 1155 | . 524 631 Core 253 | . 97 156 Absorbed by Shields . | . . . Regen/Repaired (Parts) 193 | . 193 . Core Remaining (%) 100 | 100 . . Volleys Fired 163 | 31 99 33 Largest 2 | 1 2 2 Hottest 100 | 40 100 89 Shots Fired 253 | 31 154 68 Gun 97 | 31 66 . Cannon 147 | . 79 68 Launcher . | . . . Special 9 | . 9 . Kinetic 105 | . 67 38 Thermal 74 | 31 43 . Explosive . | . . . Electromagnetic 74 | . 44 30 Robot Hit Streak 23 | 6 23 11 Robot Miss Streak 5 | 3 5 2 Penetration Max . | . . . Secondary Targets 1 | . 1 . Max Gunslinging Chain 1 | . 1 . Shots Hit Robots 148 | 19 83 46 Core Hits 62 | 7 40 15 Critical Kills . | . . . Critical Parts Destroyed . | . . . Critical Strikes 3 | . 3 . Blast 1 | . 1 . Corrupt 2 | . 2 . Melee Attacks . | . . . Impact . | . . . Slashing . | . . . Piercing . | . . . Sneak Attacks . | . . . Combat Hostiles . | . . . Follow-up Attacks . | . . . Damage Inflicted 2768 | 217 1565 986 Guns 688 | 217 471 . Cannons 1941 | . 1051 890 Explosions 139 | . 43 96 Melee . | . . . Ramming . | . . . Kinetic 1053 | . 622 431 Thermal 656 | 217 343 96 Explosive . | . . . Electromagnetic 1059 | . 600 459 Impact . | . . . Slashing . | . . . Piercing . | . . . Highest Corruption 1 | . 1 1 Average Corruption 1 | . 1 1 Corruption Purged . | . . . Corruption Blocked . | . . . Effects 32 | . 8 24 Message Errors 6 | . 1 5 Matter Fused 7 | . . 7 Heat Flow Errors 2 | . 1 1 Energy Discharges 5 | . 3 2 Data Loss (minor) 5 | . 2 3 Data Loss (major) 2 | . . 2 Misfires 4 | . 1 3 Alerts 1 | . . 1 Overload Shots . | . . . Overflow Damage 24 | . 18 6 Projectiles 24 | . 18 6 Explosions . | . . . Melee . | . . . Knockbacks 3 | . 1 2 Impact . | . . . Kinetic 3 | . 1 2 Secondary . | . . . Self-Inflicted Damage . | . . . Shots . | . . . Rammed . | . . . Targets Rammed . | . . . Kicked . | . . . Crushed . | . . . Highest Temperature 215 | . 215 215 Average Temperature 57 | . 57 65 Received Heat Transfer 354 | . 264 90 Siege Activations . | . . . Martial Activations . | . . . Shielding Activations . | . . . Robots Disrupted . | . . . Combat Hostiles . | . . . Robots Corrupted 1 | . 1 . Combat Hostiles 1 | . 1 . Parts Fried 3 | . . 3 Impact Corruptions . | . . . Robots Melted . | . . . Combat Hostiles . | . . . Parts Melted 1 | 1 . . Heat Transferred 1325 | 500 725 100 Parts Sabotaged . | . . . Parts Stolen . | . . . Parts Stripped . | . . . Power Chain Reactions 3 | . 2 1 Alert | -11 -10 -10 ------- Run | Yrd Mat Sub Maximum Alert Level 1 | . 1 . Low Security (%) 99 | 100 99 . Level 1 . | . . . Level 2 . | . . . Level 3 . | . . . Level 4 . | . . . Level 5 . | . . . High Security . | . . . Max Security . | . . . Peak Influence 200 | 10 200 . Initial . | . . . Average 85 | 1 90 . Influence Increases 752 | 30 627 95 Destroy 0b10 Robot/C 360 | . 320 40 Destroy 0b10 Robot/NC 105 | 30 75 . Destroy Leader 90 | . 80 10 Successful Hack 43 | . 43 . Disable Machine 15 | . 15 . Destroy Structure 19 | . 19 . Lose Combat Pursuer 120 | . 75 45 Influence Decreases 709 | 30 551 128 Entered New Map 37 | . . 37 Time Decay 654 | 30 551 73 Lost Part 8 | . . 8 Lost Ally 10 | . . 10 Squads Dispatched 3 | . 3 . Investigation 2 | . 2 . Extermination . | . . . Reinforcement 1 | . 1 . Assault . | . . . Garrison . | . . . Intercept . | . . . Searches Triggered . | . . . Construction Impeded . | . . . Haulers Reinforced . | . . . Active Scanning Responses . | . . . Cargo Convoy Interrupts . | . . . Stealth | -11 -10 -10 --------- Run | Yrd Mat Sub Distress Signals 3 | . 3 . Communications Jammed . | . . . Distress Signals . | . . . Times Spotted 39 | . 25 14 Peak Tracking Total 6 | . 5 6 Tactical Retreats 4 | . 3 1 Traps | -11 -10 -10 ------- Run | Yrd Mat Sub Traps Triggered 4 | . 3 1 Indirectly . | . . . Trap Hack Attempts . | . . . Triggered . | . . . Disarmed . | . . . Reprogrammed . | . . . Reused . | . . . Traps Extracted . | . . . Installed . | . . . Triggered . | . . . Most Traps Carried 1 | . . 1 Machines | -11 -10 -10 ---------- Run | Yrd Mat Sub Machines Disabled 1 | . 1 . Max in Single Turn 1 | . 1 . Machines Repaired . | . . . Machines Dismantled . | . . . Machines Sabotaged . | . . . Overloaded Fab Kills . | . . . Hacking | -11 -10 -10 --------- Run | Yrd Mat Sub Machines Accessed 11 | . 10 1 Terminals 7 | . 7 . Fabricators . | . . . Repair Stations 1 | . 1 . Recycling Units 2 | . 2 . Scanalyzers . | . . . Garrison Access . | . . . Total Hacks 46 | . 45 1 Successful 27 | . 26 1 Failed 18 | . 18 . Catastrophic 2 | . 2 . Database Lockouts 1 | . 1 . Manual 32 | . 32 . Terminals 29 | . 29 . Fabricators . | . . . Repair Stations 7 | . 7 . Recycling Units 9 | . 9 . Scanalyzers . | . . . Garrison Access . | . . . Terminal Hacks 9 | . 8 1 Robot Analysis 3 | . 3 . Prototype ID Bank 1 | . 1 . Terminal Index 1 | . 1 . Locate Traps 2 | . 2 . Registered Components 1 | . 1 . Proto ID Catalog 1 | . . 1 Fabricator Hacks . | . . . Repair Station Hacks 7 | . 7 . Scan Component 4 | . 4 . Repair 3 | . 3 . Recycling Unit Hacks 2 | . 2 . Report Inventory 1 | . 1 . Retrieve Components 1 | . 1 . Scanalyzer . | . . . Garrison Access Hacks . | . . . Unauthorized Hacks 9 | . 9 . Terminals 7 | . 7 . Assimilate 1 | . 1 . Botnet 5 | . 5 . Operators 1 | . 1 . Fabricators . | . . . Repair Stations . | . . . Recycling Units 2 | . 2 . Reject 2 | . 2 . Scanalyzers . | . . . Garrison Access . | . . . Data Cores Recovered . | . . . Used . | . . . Hacking Detections 10 | . 10 . Full Trace Events 1 | . 1 . Feedback Events . | . . . Feedback Blocked . | . . . Robot Schematics Acquired . | . . . Robots Built . | . . . Authchips . | . . . Time . | . . . Total Robot Build Rating . | . . . Part Schematics Acquired . | . . . Parts Built . | . . . Authchips . | . . . Time . | . . . Total Part Build Rating . | . . . Parts Repaired 3 | . 3 . Time 90 | . 90 . Parts Recycled . | . . . Recycled Matter . | . . . Retrieved Matter . | . . . Retrieved Components 9 | . 9 . Parts Scanalyzed . | . . . Part Schematics Acquired . | . . . Parts Damaged . | . . . Bothacking | -11 -10 -10 ------------ Run | Yrd Mat Sub Used RIF Installer . | . . . Robots Hacked . | . . . Non-combat . | . . . Combat . | . . . Robot Hacks Applied . | . . . Relay Couplers Released . | . . . Fabnet Peak Effective % . | . . . Robots Rewired . | . . . Allies Hacked . | . . . Hacks Repelled . | . . . Allies | -11 -10 -10 -------- Run | Yrd Mat Sub Total Allies 1 | . 1 . Largest Group 1 | . 1 1 Highest-Rated Group 10 | . 10 10 Highest-Rated Ally 10 | . 10 10 Total Orders . | . . . Ally Attacks . | . . . Total Damage . | . . . Kills . | . . . Allies Corrupted . | . . . Allies Melted . | . . . Intel | -11 -10 -10 ------- Run | Yrd Mat Sub Active Infowar (turns) 4858 | 73 2162 2623 Optics 4061 | . 1438 2623 Seismic 797 | 73 724 . Robot Analysis Total 3 | . 3 . Derelict Logs Recovered 3 | . . 3 Drone Launches . | . . . Drone Recoveries . | . . . Exploration | -11 -10 -10 ------------- Run | Yrd Mat Sub Turns Passed 5013 | 155 2235 2623 Spaces Moved 2411 | 83 1168 1160 Core 3 | 3 . . Treads . | . . . Legs . | . . . Wheels 2408 | 80 1168 1160 Hover . | . . . Flight . | . . . Fastest Speed 50 | 50 95 200 Average Speed 179 | 89 151 214 Slowest Speed 215 | 95 215 215 Overloaded Moves . | . . . Propulsion Burnouts . | . . . Robots Hopped . | . . . Potential Cave-ins . | . . . Cave-ins Triggered . | . . . Exploration Rate (%) 56 | 4 100 65 Regions Visited 2 Branch Regions 1 Pre-discovered Areas 1 | . . 1 Known Exits Taken . | . . . Unknown Exits Taken 2 | 1 1 . Scrap Searched 5 | . . 5 Spaces Dug 3 | . 3 . Terrain Destroyed 25 | . 18 7 Melee . | . . . Projectile 8 | . 8 . AOE 17 | . 10 7 Terrain Rammed . | . . . Walls Destroyed . | . . . Machines Disabled . | . . . Actions | -11 -10 -10 --------- Run | Yrd Mat Sub Total 2822 | 128 1468 1226 Wait 159 | . 151 8 Move 2409 | 82 1167 1160 Hop . | . . . Pick Up 41 | 8 23 10 Fast Attach 16 | 7 8 1 Attach 5 | . . 5 Detach 2 | . 2 . Swap 9 | . 7 2 Drop 18 | . 11 7 Fire 163 | 31 99 33 Melee . | . . . Ram . | . . . Kick . | . . . Crush . | . . . Escape Stasis . | . . . Rewire . | . . . Trap . | . . . Miscellaneous . | . . . Route ------- -11/Scrapyard -10/Materials (discovered 6 exits: [*Mat x3] / [*Min x2] / *Sub) -10/Subcaves (discovered 1 exit: [*Mat]) History --------- Turn | Location | Event 8 | -11/Scrapyard | Discovered new exit (range 16) 156 | -11/Scrapyard | Entered Materials 230 | -10/Materials | Discovered new exit (range 8) 309 | -10/Materials | Build established: Mutant 810 | -10/Materials | Discovered new exit (range 13) 978 | -10/Materials | Central database locked down 1657 | -10/Materials | Repaired Ion Engine 1691 | -10/Materials | Repaired Lgt. EM Pulse Cannon 1724 | -10/Materials | Repaired Imp. Light Cannon 1930 | -10/Materials | Discovered new exit (range 4) 2137 | -10/Materials | Discovered new exit (range 14) 2357 | -10/Materials | Discovered new exit (range 5) 2365 | -10/Materials | Discovered new exit (range 9) 2391 | -10/Materials | Entered Subcaves 2391 | -10/Subcaves | Accompanied by 1 ally 2402 | -10/Subcaves | Learned Materials emergency access door positions 2533 | -10/Subcaves | Shifting Twisted Machinery released Unknown Energy Gun 2535 | -10/Subcaves | Shifting Twisted Machinery released Sub. Optics 3111 | -10/Subcaves | Visited 4L-MR0's lab 3418 | -10/Subcaves | A swath of the cavern ceiling suddenly collapsed 3839 | -10/Subcaves | Shifting Twisted Machinery released Shrapnel Trap 3852 | -10/Subcaves | Shifting Twisted Machinery released Battle Cannon 4098 | -10/Subcaves | Core integrity fell below 50% 4827 | -10/Subcaves | Discovered new exit (range 9) 4847 | -10/Subcaves | Core integrity fell below 20% 5014 | -10/Subcaves | Destroyed by S-10 Pest with Light Assault Rifle Last Messages --------------- 04864_ 8B-WPD(R) knocked back. 04867_ 8B-WPD(R) destroyed. 04872_ Acquired 6 matter. 04877_ Acquired 26 matter. 04881_ Subatomizers dissect the Sub. Beam Cannon. 04881_ Acquired Corrupted Sub. Monowheel. 04884_ Acquired 23 matter. 04909_ ID-OCR(u) deconstructs Twisted Machinery. 04933_ ID-OCR(u) cries out in pain. 04933_ ID-OCR(u) destroyed. 04939_ Acquired 15 matter. 04943_ Acquired 5 matter. 04946_ System corrupted: FCS attempts to trigger Imp. Light Cannon. 04946_ System corrupted: Imp. Light Cannon misfires. 04959_ Subatomizers dissect the Wheel. 04975_ System corrupted: Matter fused (-9). Map ----- +----------------------------------------------------+ | ??????????????????###### # ###?????? | | ??????????????????# ## #???????? | | ?????????????????# ### #???????? | | ?????????????????## ## #?# #???????? | | ??????????????????# ## ## #?# #???????? | | ??????????????????## ##?## ##?# ##???????? | | ???????????????????##????## #??# #???????? | | ??????????????????????????## #??##"##???????? | | ?????????????????????????### #??#"""#???????? | | ????????????????????????## ##??## "##??????? | | ?????????????? ??????## ##???# "#??????? | | ????????????? ?????## #????# "#??????? | | ????????????? ????# #????#"%"##??????? | | ?????????????? ????## #????#" "#???????? | | ?????????????## #????###### #???##" #?##????? | | ?????????????# ???????### #???# ##"###??? | | ?????????????? ???????# ; #?### "" #??? | | ???????????????# ?#######; ### = ""##?? | | ???????????????#s ?# ##&% ;### " #?? | | ???????????????# s ?# % ; ##" #####?? | | ???????????????# s ## %####" ## "#?????? | | ???????????????# s % """ ######?????? | | ???????????????## ##??????????? | | ????????????????#### ##???????????? | | ??????????????????## # # #????????????? | | ??????????????????# @ ### ####????????????? | | ??????????????????# # # ##????????????? | | ??????????????????# < ##???????????? | | ??????????????????## ## ##??????????? | | ???????????????????# ##### # #??????????? | | ?????????????????? ##??# ### #?????????? | | ????????????????# ???# #?## #????????? | | ????????????????#####???# ##??### ##????????? | | ????????????????????????## ##??????####?????????? | | ?????????????????????????####????????????????????? | | ?????????????????????????????????????????????????? | | ?????????????????????????????????????????????????? | | ?????????????????????????????????????????????????? | | ?????????????????????????????????????????????????? | | ?????????????????????????????????????????????????? | | ?????????????????????????????????????????????????? | | ?????????????????????????????????????????????????? | | ?????????????????????????????????????????????????? | | ?????????????????????????????????????????????????? | | ?????????????????????????????????????????????????? | | ?????????????????????????????????????????????????? | | ?????????????????????????????????????????????????? | | ?????????????????????????????????????????????????? | | ?????????????????????????????????????????????????? | | | +----------------------------------------------------+ Best States ------------- Heat Dissipation 25 Energy Generation 10 Energy Capacity 250 Matter Stores 300 Matter Capacity 300 Sight Range 18 Terrain Scan Density 10 Evasion (%) 44 Item Schematics ----------------- None Robot Schematics ------------------ None Fabricated ------------ Nothing Repaired ---------- Ion Engine | 31% | -10/Materials Lgt. EM Pulse Cannon | 14% | -10/Materials Imp. Light Cannon | 31% | -10/Materials Alien Tech Used ----------------- None Achievements -------------- None Challenges ------------ None Game ------ Seed AntimissileExplosiveLaser Manual? 0 Play Time 00:25:29 Cumulative 324.6 hours Start 2025.08.20 @ 13:16:22 End 2025.08.20 @ 13:43:31 Sessions 1 Manual Loads 0 Difficulty Rogue Special Mode None Game No. 282 Rogue 282 Adventurer 0 Explorer 0 Win Type - Total 2 Types 2/0/0/0/0/0/0/0/0/0 Lore% 73 Gallery% 65 Achievement% 53 Wizard Run 0 Options --------- Layout 2 ASCII 1 Keyboard 1 Movement Numpad Keybinds 0 Fullscreen 2 Font 32/TamsynBold Map View 50x44 Zoom Use 0% Tactical HUD 1 Map Filters NONE Filters NONE Steam 1 RUN: f9452416-282d-4780-8403-b0e4ea8a368b